[Event "Friendship Match AZE-TUR Day 2"]
[Site "Mustafa Kemal Atatürk"]
[Date "2020.08.09"]
[Round "1"]
[White "RuznaMamuna"]
[Black "GGuseinov"]
[Result "1/2-1/2"]
[WhiteElo "1614"]
[BlackElo "1620"]
[Annotator "NA"]
[PlyCount "117"]
[EventDate "2020.08.09"]
[EventType "team-tourn (rapid)"]
[TimeControl "900+5"]

1. e4 {[%emt 0:00:01]} c5 {[%emt 0:00:01]} 2. Nf3 {[%emt 0:00:03]} g6 {[%emt 0:00:03]} 3. d4 {[%emt 0:00:03]} cxd4 {[%emt 0:00:01]} 4. Nxd4 {[%emt 0:00:01]} Nc6 {[%emt 0:00:02]} 5. c4 {[%emt 0:00:03]} Nf6 {[%emt 0:00:01]} 6. Nc3 {[%emt 0:00:02]} Nxd4 {[%emt 0:00:01]} 7. Qxd4 {[%emt 0:00:02]} d6 {[%emt 0:00:00]} 8. Be2 {[%emt 0:00:05]} Bg7 {[%emt 0:00:03]} 9. Be3 {[%emt 0:00:09]} O-O {[%emt 0:00:02]} 10. Qd2 {[%emt 0:00:10]} a5 {[%emt 0:00:01]} 11. f3 {[%emt 0:00:36]} a4 {[%emt 0:00:03]} 12. Kf2 {[%emt 0:00:53]} Be6 {[%emt 0:00:06]} 13. Rac1 {[%emt 0:00:23]} Nd7 {[%emt 0:00:12]} 14. Rhd1 {[%emt 0:03:57]} Qa5 {[%emt 0:00:07]} 15. Nd5 {[%emt 0:03:08]} Rfe8 {[%emt 0:00:04]} 16. Qxa5 {[%emt 0:01:01]} Rxa5 {[%emt 0:00:00]} 17. Rc2 {[%emt 0:00:06]} Kf8 {[%emt 0:00:18]} 18. Bd4 {[%emt 0:01:59]} Bxd4+ {[%emt 0:00:29]} 19. Rxd4 {[%emt 0:00:03]} Rc8 {[%emt 0:00:00]} 20. Ne3 {[%emt 0:00:05]} Ne5 {[%emt 0:00:43]} 21. Rd1 {[%emt 0:00:26]} Rac5 {[%emt 0:00:20]} 22. Rdc1 {[%emt 0:00:03]} Nc6 {[%emt 0:00:25]} 23. a3 {[%emt 0:00:14]} Nd4 {[%emt 0:00:49]} 24. Rc3 {[%emt 0:00:03]} Nb3 {[%emt 0:00:05]} 25. Rd1 {[%emt 0:00:48]} R8c6 {[%emt 0:00:14]} 26. g4 {[%emt 0:00:13]} Na5 {[%emt 0:00:30]} 27. Rdc1 {[%emt 0:00:06]} Rb6 {[%emt 0:00:06]} 28. R1c2 {[%emt 0:00:08]} g5 {[%emt 0:00:05]} 29. Kg3 {[%emt 0:00:36]} Nb3 {[%emt 0:00:27]} 30. Bd1 {[%emt 0:00:20]} Na5 {[%emt 0:00:21]} 31. Rd2 {[%emt 0:00:40]} Bd7 {[%emt 0:00:02]} 32. h4 {[%emt 0:00:22]} h6 {[%emt 0:00:07]} 33. hxg5 {[%emt 0:00:02]} hxg5 {[%emt 0:00:00]} 34. Rh2 {[%emt 0:00:16]} Kg7 {[%emt 0:00:07]} 35. Nd5 {[%emt 0:00:11]} Ra6 {[%emt 0:00:10]} 36. Nxe7 {[%emt 0:00:02]} Rxc4 {[%emt 0:00:28]} 37. Rxc4 {[%emt 0:00:07]} Nxc4 {[%emt 0:00:00]} 38. Be2 {[%emt 0:00:02]} b5 {[%emt 0:00:02]} 39. Bxc4 {[%emt 0:00:03]} bxc4 {[%emt 0:00:00]} 40. Nd5 {[%emt 0:00:08]} Be6 {[%emt 0:00:15]} 41. Nc3 {[%emt 0:00:01]} Kf6 {[%emt 0:00:22]} 42. Kf2 {[%emt 0:00:10]} Ke5 {[%emt 0:00:26]} 43. Ke3 {[%emt 0:00:02]} Ra8 {[%emt 0:00:01]} 44. Rh5 {[%emt 0:00:11]} Kf6 {[%emt 0:00:01]} 45. Rh6+ {[%emt 0:00:02]} Kg7 {[%emt 0:00:23]} 46. Rh2 {[%emt 0:00:02]} Kf6 {[%emt 0:00:04]} 47. Kd4 {[%emt 0:00:01]} Ra6 {[%emt 0:00:21]} 48. Rh6+ {[%emt 0:00:04]} Kg7 {[%emt 0:00:02]} 49. Rh2 {[%emt 0:00:03]} Kf6 {[%emt 0:00:02]} 50. Re2 {[%emt 0:00:33]} Ra5 {[%emt 0:00:19]} 51. Na2 {[%emt 0:00:06]} Ra8 {[%emt 0:00:17]} 52. Rh2 {[%emt 0:00:02]} Kg7 {[%emt 0:00:37]} 53. Nc3 {[%emt 0:00:09]} Ra5 {[%emt 0:00:12]} 54. Rd2 {[%emt 0:00:09]} Kf6 {[%emt 0:00:02]} 55. Ke3 {[%emt 0:00:05]} Ke5 {[%emt 0:00:05]} 56. Rh2 {[%emt 0:00:02]} Ra8 {[%emt 0:00:11]} 57. Rh5 {[%emt 0:00:01]} Kf6 {[%emt 0:00:01]} 58. Rh6+ {[%emt 0:00:13]} Ke5 {[%emt 0:00:09]} 59. Rh5 {[%emt 0:00:11] (Lag: Av=1.06s, max=1.9s)} 1/2-1/2